[Event "Titled Tuesday Blitz September 28 2021"]
[White "Havanecz, Bianka"]
[Black "Paltrinieri, Nicholas"]
[WhiteFideId "704814"]
[BlackFideId "828262"]
[WhiteElo "2400"]
[BlackElo "2254"]
[Result "0-1"]
[Round "08"]
[TimeControl "180+1"]
[Date "2021.09.28"]
[WhiteClock "0:00:06"]
[BlackClock "0:00:07"]

1. d4 {[%clk 0:03:00]}  g6 {[%clk 0:02:55]} 2. c4 {[%clk 0:03:01]}  Bg7 {[%clk 0:02:56]} 3. e4 {[%clk 0:02:54]}  d6 {[%clk 0:02:56]} 4. Nc3 {[%clk 0:02:54]}  c6 {[%clk 0:02:56]} 5. h3 {[%clk 0:02:49]}  a6 {[%clk 0:02:57]} 6. Be3 {[%clk 0:02:47]}  b5 {[%clk 0:02:57]} 7. Rc1 {[%clk 0:02:39]}  Nd7 {[%clk 0:02:56]} 8. Nf3 {[%clk 0:02:36]}  Ngf6 {[%clk 0:02:52]} 9. a3 {[%clk 0:02:35]}  bxc4 {[%clk 0:02:49]} 10. Bxc4 {[%clk 0:02:34]}  d5 {[%clk 0:02:49]} 11. Bd3 {[%clk 0:02:27]}  dxe4 {[%clk 0:02:23]} 12. Nxe4 {[%clk 0:02:28]}  Bb7 {[%clk 0:02:21]} 13. O-O {[%clk 0:02:24]}  O-O {[%clk 0:02:20]} 14. Bb1 {[%clk 0:02:08]}  Nd5 {[%clk 0:02:15]} 15. Bg5 {[%clk 0:01:56]}  h6 {[%clk 0:02:15]} 16. Bh4 {[%clk 0:01:56]}  Qb6 {[%clk 0:02:12]} 17. b4 {[%clk 0:01:53]}  a5 {[%clk 0:02:11]} 18. Nc5 {[%clk 0:01:46]}  Nxc5 {[%clk 0:02:08]} 19. bxc5 {[%clk 0:01:42]}  Qc7 {[%clk 0:02:07]} 20. Bg3 {[%clk 0:01:40]}  Qd8 {[%clk 0:02:01]} 21. Re1 {[%clk 0:01:40]}  Rc8 {[%clk 0:00:51]} 22. Be5 {[%clk 0:01:32]}  Ba6 {[%clk 0:00:44]} 23. Bxg7 {[%clk 0:01:28]}  Kxg7 {[%clk 0:00:45]} 24. Bd3 {[%clk 0:01:14]}  Bxd3 {[%clk 0:00:43]} 25. Qxd3 {[%clk 0:01:14]}  e6 {[%clk 0:00:44]} 26. Ne5 {[%clk 0:01:13]}  Qc7 {[%clk 0:00:43]} 27. Nc4 {[%clk 0:01:11]}  Rb8 {[%clk 0:00:43]} 28. Nd6 {[%clk 0:01:08]}  a4 {[%clk 0:00:43]} 29. Rb1 {[%clk 0:01:05]}  Rxb1 {[%clk 0:00:41]} 30. Rxb1 {[%clk 0:01:05]}  Rb8 {[%clk 0:00:40]} 31. g3 {[%clk 0:00:54]}  h5 {[%clk 0:00:27]} 32. Rb7 {[%clk 0:00:45]}  Rxb7 {[%clk 0:00:26]} 33. Ne8+ {[%clk 0:00:45]}  Kf8 {[%clk 0:00:21]} 34. Nxc7 {[%clk 0:00:46]}  Nxc7 {[%clk 0:00:21]} 35. Qc4 {[%clk 0:00:41]}  Ra7 {[%clk 0:00:20]} 36. Qb4 {[%clk 0:00:39]}  Nb5 {[%clk 0:00:13]} 37. h4 {[%clk 0:00:35]}  Ke7 {[%clk 0:00:13]} 38. Kg2 {[%clk 0:00:34]}  Kd7 {[%clk 0:00:14]} 39. f3 {[%clk 0:00:30]}  Ra8 {[%clk 0:00:14]} 40. g4 {[%clk 0:00:30]}  hxg4 {[%clk 0:00:13]} 41. fxg4 {[%clk 0:00:31]}  Ke7 {[%clk 0:00:08]} 42. Kg3 {[%clk 0:00:27]}  Kd7 {[%clk 0:00:07]} 43. h5 {[%clk 0:00:26]}  gxh5 {[%clk 0:00:07]} 44. gxh5 {[%clk 0:00:27]}  Ke7 {[%clk 0:00:08]} 45. Qb2 {[%clk 0:00:19]}  Rd8 {[%clk 0:00:08]} 46. h6 {[%clk 0:00:18]}  Nxd4 {[%clk 0:00:08]} 47. h7 {[%clk 0:00:16]}  e5 {[%clk 0:00:07]} 48. Qb7+ {[%clk 0:00:15]}  Kf6 {[%clk 0:00:06]} 49. Qc7 {[%clk 0:00:13]}  Rh8 {[%clk 0:00:06]} 50. Qd6+ {[%clk 0:00:11]}  Kf5 {[%clk 0:00:06]} 51. Qd7+ {[%clk 0:00:09]}  Kf6 {[%clk 0:00:06]} 52. Qd6+ {[%clk 0:00:10]}  Ne6 {[%clk 0:00:06]} 53. Qxc6 {[%clk 0:00:09]}  Rxh7 {[%clk 0:00:07]} 54. Qd6 {[%clk 0:00:09]}  Rg7+ {[%clk 0:00:06]} 55. Kf2 {[%clk 0:00:09]}  Rg8 {[%clk 0:00:06]} 56. c6 {[%clk 0:00:09]}  Rc8 {[%clk 0:00:07]} 57. Qd7 {[%clk 0:00:09]}  Rc7 {[%clk 0:00:08]} 58. Qd6 {[%clk 0:00:09]}  Kf5 {[%clk 0:00:08]} 59. Qd3+ {[%clk 0:00:06]}  Kg5 {[%clk 0:00:08]} 60. Qe3+ {[%clk 0:00:06]}  Kf6 {[%clk 0:00:08]} 61. Qf3+ {[%clk 0:00:06]}  Ke7 {[%clk 0:00:08]} 62. Qd5 {[%clk 0:00:06]}  f6 {[%clk 0:00:08]} 63. Qc4 {[%clk 0:00:06]}  Nd4 {[%clk 0:00:08]} 64. Qxa4 {[%clk 0:00:06]}  Rxc6 {[%clk 0:00:09]} 65. Qb4+ {[%clk 0:00:06]}  Ke6 {[%clk 0:00:09]} 66. a4 {[%clk 0:00:06]}  f5 {[%clk 0:00:09]} 67. a5 {[%clk 0:00:06]}  Rc2+ {[%clk 0:00:10]} 68. Ke1 {[%clk 0:00:06]}  Nf3+ {[%clk 0:00:10]} 69. Kd1 {[%clk 0:00:07]}  Rd2+ {[%clk 0:00:09]} 70. Kc1 {[%clk 0:00:07]}  Rd6 {[%clk 0:00:08]} 71. Qb5 {[%clk 0:00:07]}  Nd4 {[%clk 0:00:08]} 72. Qc4+ {[%clk 0:00:07]}  Kf6 {[%clk 0:00:08]} 73. a6 {[%clk 0:00:08]}  Rd7 {[%clk 0:00:07]} 74. Qc5 {[%clk 0:00:06]}  Nb3+ {[%clk 0:00:05]} 75. Kb2 {[%clk 0:00:06]}  Nxc5 {[%clk 0:00:06]} 76. a7 {[%clk 0:00:06]}  Rxa7 {[%clk 0:00:07]} 0-1


[Site "https://www.chess.com"]

[Event "Titled Tuesday Blitz September 28 2021"]
[White "Hjartarson, Johann"]
[Black "Shuvalov, Evgenij"]
[WhiteFideId "2300044"]
[BlackFideId "4187237"]
[WhiteElo "2502"]
[BlackElo "2129"]
[Result "1-0"]
[Round "08"]
[TimeControl "180+1"]
[Date "2021.09.28"]
[WhiteClock "0:00:30"]
[BlackClock "0:00:17"]

1. e4 {[%clk 0:03:00]}  e6 {[%clk 0:02:53]} 2. d4 {[%clk 0:03:00]}  d5 {[%clk 0:02:53]} 3. Nd2 {[%clk 0:02:58]}  c5 {[%clk 0:02:51]} 4. exd5 {[%clk 0:02:58]}  exd5 {[%clk 0:02:51]} 5. Ngf3 {[%clk 0:02:58]}  Nc6 {[%clk 0:02:50]} 6. Bb5 {[%clk 0:02:57]}  Qe7+ {[%clk 0:02:50]} 7. Qe2 {[%clk 0:02:55]}  Qxe2+ {[%clk 0:02:49]} 8. Bxe2 {[%clk 0:02:55]}  Bf5 {[%clk 0:02:46]} 9. O-O {[%clk 0:02:44]}  Bxc2 {[%clk 0:02:42]} 10. Re1 {[%clk 0:02:40]}  O-O-O {[%clk 0:02:29]} 11. dxc5 {[%clk 0:02:31]}  Bxc5 {[%clk 0:02:26]} 12. b3 {[%clk 0:02:15]}  Nf6 {[%clk 0:02:19]} 13. Bb2 {[%clk 0:02:15]}  Bg6 {[%clk 0:02:08]} 14. Rac1 {[%clk 0:02:14]}  Bb4 {[%clk 0:02:03]} 15. Bb5 {[%clk 0:02:09]}  Rhe8 {[%clk 0:01:42]} 16. Rxe8 {[%clk 0:02:06]}  Rxe8 {[%clk 0:01:42]} 17. Nf1 {[%clk 0:02:01]}  Kc7 {[%clk 0:01:30]} 18. Ne3 {[%clk 0:02:01]}  Be4 {[%clk 0:01:25]} 19. a3 {[%clk 0:01:45]}  Bd6 {[%clk 0:01:20]} 20. Nd4 {[%clk 0:01:43]}  Be5 {[%clk 0:01:05]} 21. Bxc6 {[%clk 0:01:32]}  bxc6 {[%clk 0:01:00]} 22. Rxc6+ {[%clk 0:01:23]}  Kb7 {[%clk 0:01:01]} 23. Rc5 {[%clk 0:01:18]}  Rc8 {[%clk 0:00:53]} 24. Rxc8 {[%clk 0:01:11]}  Kxc8 {[%clk 0:00:54]} 25. f3 {[%clk 0:01:11]}  Bd3 {[%clk 0:00:47]} 26. b4 {[%clk 0:01:07]}  Kc7 {[%clk 0:00:44]} 27. Nb5+ {[%clk 0:01:03]}  Bxb5 {[%clk 0:00:44]} 28. Bxe5+ {[%clk 0:01:02]}  Kc6 {[%clk 0:00:44]} 29. Bxf6 {[%clk 0:01:00]}  gxf6 {[%clk 0:00:45]} 30. Nf5 {[%clk 0:01:00]}  Bd3 {[%clk 0:00:40]} 31. Nd4+ {[%clk 0:01:00]}  Kd6 {[%clk 0:00:41]} 32. Kf2 {[%clk 0:01:00]}  Bb1 {[%clk 0:00:22]} 33. Ke3 {[%clk 0:00:59]}  a6 {[%clk 0:00:22]} 34. g3 {[%clk 0:00:59]}  Ke5 {[%clk 0:00:19]} 35. Nc6+ {[%clk 0:00:54]}  Kd6 {[%clk 0:00:20]} 36. Nb8 {[%clk 0:00:52]}  a5 {[%clk 0:00:20]} 37. bxa5 {[%clk 0:00:51]}  Kc5 {[%clk 0:00:20]} 38. Nd7+ {[%clk 0:00:49]}  Kb5 {[%clk 0:00:20]} 39. Kd4 {[%clk 0:00:47]}  Kxa5 {[%clk 0:00:18]} 40. Nxf6 {[%clk 0:00:46]}  Ka4 {[%clk 0:00:19]} 41. Kxd5 {[%clk 0:00:44]}  Kxa3 {[%clk 0:00:19]} 42. Kd6 {[%clk 0:00:43]}  Kb2 {[%clk 0:00:18]} 43. Ke7 {[%clk 0:00:43]}  Bg6 {[%clk 0:00:18]} 44. f4 {[%clk 0:00:42]}  Kc3 {[%clk 0:00:18]} 45. g4 {[%clk 0:00:42]}  h5 {[%clk 0:00:15]} 46. f5 {[%clk 0:00:39]}  hxg4 {[%clk 0:00:15]} 47. fxg6 {[%clk 0:00:39]}  fxg6 {[%clk 0:00:16]} 48. Nxg4 {[%clk 0:00:39]}  Kd4 {[%clk 0:00:16]} 49. Kf6 {[%clk 0:00:39]}  Ke4 {[%clk 0:00:16]} 50. Kxg6 {[%clk 0:00:39]}  Kf4 {[%clk 0:00:16]} 51. Kh5 {[%clk 0:00:39]}  Kf5 {[%clk 0:00:16]} 52. h4 {[%clk 0:00:38]}  Ke6 {[%clk 0:00:16]} 53. Nh6 {[%clk 0:00:38]}  Kf6 {[%clk 0:00:16]} 54. Kg4 {[%clk 0:00:38]}  Kg6 {[%clk 0:00:16]} 55. Nf5 {[%clk 0:00:38]}  Kf6 {[%clk 0:00:16]} 56. h5 {[%clk 0:00:38]}  Kf7 {[%clk 0:00:17]} 57. Kg5 {[%clk 0:00:38]}  Kg8 {[%clk 0:00:17]} 58. Kg6 {[%clk 0:00:38]}  Kh8 {[%clk 0:00:17]} 59. h6 {[%clk 0:00:38]}  Kg8 {[%clk 0:00:18]} 60. Ne7+ {[%clk 0:00:38]}  Kh8 {[%clk 0:00:17]} 61. Nf5 {[%clk 0:00:32]}  Kg8 {[%clk 0:00:17]} 62. Nd6 {[%clk 0:00:32]}  Kh8 {[%clk 0:00:16]} 63. Nf7+ {[%clk 0:00:31]}  Kg8 {[%clk 0:00:17]} 64. h7+ {[%clk 0:00:31]}  Kf8 {[%clk 0:00:17]} 65. h8=Q+ {[%clk 0:00:31]}  Ke7 {[%clk 0:00:18]} 66. Qd8+ {[%clk 0:00:30]}  Ke6 {[%clk 0:00:17]} 67. Qd6# {[%clk 0:00:30]} 1-0


[Site "https://www.chess.com"]

[Event "Titled Tuesday Blitz September 28 2021"]
[White "Indjic, Aleksandar"]
[Black "Tsydypov, Zhamsaran"]
[WhiteFideId "911925"]
[BlackFideId "4108566"]
[WhiteElo "2643"]
[BlackElo "2649"]
[Result "0-1"]
[Round "08"]
[TimeControl "180+1"]
[Date "2021.09.28"]
[WhiteClock "0:00:16"]
[BlackClock "0:00:28"]

1. e4 {[%clk 0:03:00]}  c5 {[%clk 0:02:59]} 2. Nf3 {[%clk 0:03:00]}  d6 {[%clk 0:02:59]} 3. d4 {[%clk 0:03:00]}  cxd4 {[%clk 0:03:00]} 4. Nxd4 {[%clk 0:03:00]}  Nf6 {[%clk 0:03:01]} 5. Nc3 {[%clk 0:02:59]}  a6 {[%clk 0:03:02]} 6. Bc4 {[%clk 0:02:59]}  Nbd7 {[%clk 0:02:58]} 7. Qe2 {[%clk 0:02:51]}  Nc5 {[%clk 0:02:54]} 8. a3 {[%clk 0:02:38]}  e6 {[%clk 0:02:53]} 9. Ba2 {[%clk 0:02:36]}  Qc7 {[%clk 0:02:50]} 10. g4 {[%clk 0:02:33]}  h6 {[%clk 0:02:48]} 11. h4 {[%clk 0:02:28]}  b5 {[%clk 0:02:48]} 12. Rg1 {[%clk 0:02:25]}  Bb7 {[%clk 0:02:38]} 13. f3 {[%clk 0:02:24]}  g6 {[%clk 0:02:38]} 14. Be3 {[%clk 0:02:21]}  Bg7 {[%clk 0:02:37]} 15. O-O-O {[%clk 0:02:19]}  O-O {[%clk 0:02:31]} 16. g5 {[%clk 0:02:19]}  hxg5 {[%clk 0:02:30]} 17. hxg5 {[%clk 0:02:17]}  Nh5 {[%clk 0:02:31]} 18. Rh1 {[%clk 0:02:12]}  Rfc8 {[%clk 0:02:23]} 19. Rxh5 {[%clk 0:02:07]}  gxh5 {[%clk 0:02:21]} 20. Qh2 {[%clk 0:02:05]}  d5 {[%clk 0:02:15]} 21. Qxh5 {[%clk 0:02:03]}  Na4 {[%clk 0:02:15]} 22. g6 {[%clk 0:01:53]}  Nxc3 {[%clk 0:02:12]} 23. bxc3 {[%clk 0:01:52]}  fxg6 {[%clk 0:01:32]} 24. Qxg6 {[%clk 0:01:49]}  Qf7 {[%clk 0:01:32]} 25. Qg4 {[%clk 0:01:40]}  Rxc3 {[%clk 0:01:30]} 26. Bh6 {[%clk 0:01:39]}  Rxa3 {[%clk 0:01:03]} 27. Rg1 {[%clk 0:01:32]}  Rxa2 {[%clk 0:01:00]} 28. Qxg7+ {[%clk 0:01:31]}  Qxg7 {[%clk 0:01:00]} 29. Rxg7+ {[%clk 0:01:31]}  Kh8 {[%clk 0:01:00]} 30. Rxb7 {[%clk 0:01:28]}  Rg8 {[%clk 0:00:59]} 31. e5 {[%clk 0:01:22]}  Rg2 {[%clk 0:00:56]} 32. Bf8 {[%clk 0:01:05]}  Ra4 {[%clk 0:00:48]} 33. Nxe6 {[%clk 0:00:38]}  Rc4 {[%clk 0:00:48]} 34. Kb1 {[%clk 0:00:38]}  Rcxc2 {[%clk 0:00:46]} 35. Ba3 {[%clk 0:00:36]}  Rc3 {[%clk 0:00:43]} 36. Rb8+ {[%clk 0:00:31]}  Kh7 {[%clk 0:00:41]} 37. Rb7+ {[%clk 0:00:31]}  Kg8 {[%clk 0:00:38]} 38. Nf4 {[%clk 0:00:16]}  Rb3+ {[%clk 0:00:36]} 39. Kc1 {[%clk 0:00:16]}  Rg1+ {[%clk 0:00:36]} 40. Kd2 {[%clk 0:00:16]}  Rxa3 {[%clk 0:00:36]} 41. e6 {[%clk 0:00:17]}  Ra2+ {[%clk 0:00:31]} 42. Kc3 {[%clk 0:00:15]}  Re1 {[%clk 0:00:27]} 43. Kd4 {[%clk 0:00:16]}  Ra4+ {[%clk 0:00:27]} 44. Kc5 {[%clk 0:00:15]}  Rxf4 {[%clk 0:00:28]} 45. Kd6 {[%clk 0:00:16]}  Rf6 {[%clk 0:00:28]} 0-1


[Site "https://www.chess.com"]

[Event "Titled Tuesday Blitz September 28 2021"]
[White "Iskusnyh, Sergei"]
[Black "Kovanova, Baira"]
[WhiteFideId "4120027"]
[BlackFideId "4164083"]
[WhiteElo "2492"]
[BlackElo "2187"]
[Result "1-0"]
[Round "08"]
[TimeControl "180+1"]
[Date "2021.09.28"]
[WhiteClock "0:00:15"]
[BlackClock "0:00:03"]

1. d4 {[%clk 0:03:00]}  Nf6 {[%clk 0:02:59]} 2. c4 {[%clk 0:03:00]}  e6 {[%clk 0:02:59]} 3. g3 {[%clk 0:03:00]}  c5 {[%clk 0:02:58]} 4. Nf3 {[%clk 0:03:00]}  cxd4 {[%clk 0:02:58]} 5. Nxd4 {[%clk 0:03:00]}  Nc6 {[%clk 0:02:43]} 6. Bg2 {[%clk 0:02:56]}  Bc5 {[%clk 0:02:41]} 7. Nb3 {[%clk 0:02:52]}  Bb4+ {[%clk 0:02:40]} 8. Bd2 {[%clk 0:02:50]}  O-O {[%clk 0:02:36]} 9. O-O {[%clk 0:02:48]}  d5 {[%clk 0:02:35]} 10. cxd5 {[%clk 0:02:28]}  Nxd5 {[%clk 0:02:35]} 11. Bxb4 {[%clk 0:02:14]}  Ndxb4 {[%clk 0:02:29]} 12. Nc3 {[%clk 0:02:13]}  e5 {[%clk 0:02:16]} 13. a3 {[%clk 0:02:06]}  Na6 {[%clk 0:02:15]} 14. Ne4 {[%clk 0:01:50]}  Qb6 {[%clk 0:01:51]} 15. Nbd2 {[%clk 0:01:33]}  Qxb2 {[%clk 0:01:36]} 16. Nc4 {[%clk 0:01:21]}  Qd4 {[%clk 0:01:36]} 17. Ned6 {[%clk 0:01:04]}  Nc5 {[%clk 0:01:24]} 18. Qc2 {[%clk 0:00:55]}  Ne6 {[%clk 0:01:10]} 19. e3 {[%clk 0:00:47]}  Qc5 {[%clk 0:01:05]} 20. Rfc1 {[%clk 0:00:46]}  b5 {[%clk 0:00:52]} 21. Nxe5 {[%clk 0:00:37]}  Qxe5 {[%clk 0:00:28]} 22. Qxc6 {[%clk 0:00:30]}  Rb8 {[%clk 0:00:27]} 23. Nxc8 {[%clk 0:00:29]}  Rbxc8 {[%clk 0:00:21]} 24. Qxc8 {[%clk 0:00:28]}  Rxc8 {[%clk 0:00:21]} 25. Rxc8+ {[%clk 0:00:27]}  Nf8 {[%clk 0:00:21]} 26. Rd1 {[%clk 0:00:27]}  g6 {[%clk 0:00:14]} 27. Rdd8 {[%clk 0:00:27]}  Kg7 {[%clk 0:00:14]} 28. Rxf8 {[%clk 0:00:26]}  Qa1+ {[%clk 0:00:14]} 29. Bf1 {[%clk 0:00:26]}  Qxa3 {[%clk 0:00:15]} 30. Bxb5 {[%clk 0:00:24]}  a5 {[%clk 0:00:08]} 31. Ra8 {[%clk 0:00:22]}  Qb4 {[%clk 0:00:07]} 32. Rfb8 {[%clk 0:00:21]}  a4 {[%clk 0:00:03]} 33. Bxa4 {[%clk 0:00:14]}  Qe1+ {[%clk 0:00:03]} 34. Kg2 {[%clk 0:00:15]} 1-0


[Site "https://www.chess.com"]

[Event "Titled Tuesday Blitz September 28 2021"]
[White "Kanyamarala, Tarun"]
[Black "Thejkumar, M. S."]
[WhiteFideId "45004714"]
[BlackFideId "5009154"]
[WhiteElo "2077"]
[BlackElo "2312"]
[Result "0-1"]
[Round "08"]
[TimeControl "180+1"]
[Date "2021.09.28"]
[WhiteClock "0:02:00"]
[BlackClock "0:02:20"]

1. e4 {[%clk 0:03:00]}  c6 {[%clk 0:02:58]} 2. d4 {[%clk 0:02:59]}  d5 {[%clk 0:02:59]} 3. exd5 {[%clk 0:03:00]}  cxd5 {[%clk 0:02:58]} 4. Bd3 {[%clk 0:03:01]}  Nc6 {[%clk 0:02:58]} 5. c3 {[%clk 0:03:00]}  Nf6 {[%clk 0:02:54]} 6. Bf4 {[%clk 0:02:57]}  Bg4 {[%clk 0:02:53]} 7. Qb3 {[%clk 0:02:57]}  Qd7 {[%clk 0:02:53]} 8. Nd2 {[%clk 0:02:55]}  e6 {[%clk 0:02:53]} 9. Ngf3 {[%clk 0:02:56]}  Bxf3 {[%clk 0:02:53]} 10. Nxf3 {[%clk 0:02:56]}  Bd6 {[%clk 0:02:53]} 11. Ne5 {[%clk 0:02:51]}  Qc7 {[%clk 0:02:49]} 12. Bg3 {[%clk 0:02:29]}  Nxe5 {[%clk 0:02:42]} 13. dxe5 {[%clk 0:02:28]}  Bxe5 {[%clk 0:02:41]} 14. Bb5+ {[%clk 0:02:26]}  Kf8 {[%clk 0:02:41]} 15. Qa3+ {[%clk 0:02:25]}  Kg8 {[%clk 0:02:40]} 16. O-O {[%clk 0:02:22]}  h5 {[%clk 0:02:34]} 17. Bxe5 {[%clk 0:02:16]}  Qxe5 {[%clk 0:02:33]} 18. Rae1 {[%clk 0:02:16]}  Qc7 {[%clk 0:02:31]} 19. Bd3 {[%clk 0:02:09]}  Ng4 {[%clk 0:02:27]} 20. g3 {[%clk 0:02:08]}  h4 {[%clk 0:02:26]} 21. f4 {[%clk 0:02:01]}  hxg3 {[%clk 0:02:22]} 22. hxg3 {[%clk 0:02:00]}  Qb6+ {[%clk 0:02:20]} 0-1


[Site "https://www.chess.com"]

[Event "Titled Tuesday Blitz September 28 2021"]
[White "Khusnutdinov, Rustam"]
[Black "Wadsworth, Matthew J"]
[WhiteFideId "13701703"]
[BlackFideId "415804"]
[WhiteElo "2571"]
[BlackElo "2293"]
[Result "1-0"]
[Round "08"]
[TimeControl "180+1"]
[Date "2021.09.28"]
[WhiteClock "0:00:31"]
[BlackClock "0:00:04"]

1. d4 {[%clk 0:03:00]}  Nf6 {[%clk 0:02:57]} 2. c4 {[%clk 0:03:00]}  c5 {[%clk 0:02:57]} 3. d5 {[%clk 0:03:00]}  e6 {[%clk 0:02:57]} 4. Nc3 {[%clk 0:03:00]}  exd5 {[%clk 0:02:57]} 5. cxd5 {[%clk 0:02:59]}  d6 {[%clk 0:02:58]} 6. e4 {[%clk 0:02:53]}  g6 {[%clk 0:02:57]} 7. Nge2 {[%clk 0:02:53]}  h5 {[%clk 0:02:57]} 8. Bg5 {[%clk 0:02:43]}  Bg7 {[%clk 0:02:56]} 9. Qd2 {[%clk 0:02:38]}  a6 {[%clk 0:02:54]} 10. a4 {[%clk 0:02:37]}  Nbd7 {[%clk 0:02:47]} 11. Nc1 {[%clk 0:02:17]}  O-O {[%clk 0:02:42]} 12. Be2 {[%clk 0:02:17]}  Qe8 {[%clk 0:02:33]} 13. f3 {[%clk 0:02:16]}  Nh7 {[%clk 0:02:00]} 14. Bh6 {[%clk 0:02:15]}  f5 {[%clk 0:01:50]} 15. Nd3 {[%clk 0:02:07]}  Ne5 {[%clk 0:01:46]} 16. Nxe5 {[%clk 0:01:37]}  Qxe5 {[%clk 0:01:40]} 17. Bxg7 {[%clk 0:01:35]}  Kxg7 {[%clk 0:01:37]} 18. f4 {[%clk 0:01:28]}  Qd4 {[%clk 0:01:33]} 19. Rd1 {[%clk 0:01:22]}  Qxd2+ {[%clk 0:01:21]} 20. Rxd2 {[%clk 0:01:23]}  fxe4 {[%clk 0:01:02]} 21. Nxe4 {[%clk 0:01:24]}  Rxf4 {[%clk 0:01:00]} 22. Nxd6 {[%clk 0:01:23]}  b5 {[%clk 0:00:47]} 23. Nxc8 {[%clk 0:01:18]}  Rxc8 {[%clk 0:00:45]} 24. axb5 {[%clk 0:01:07]}  axb5 {[%clk 0:00:44]} 25. Bxb5 {[%clk 0:01:08]}  Nf6 {[%clk 0:00:41]} 26. Bc6 {[%clk 0:01:06]}  Rb8 {[%clk 0:00:32]} 27. Rf1 {[%clk 0:01:06]}  Re4+ {[%clk 0:00:29]} 28. Kd1 {[%clk 0:01:05]}  Rbb4 {[%clk 0:00:26]} 29. d6 {[%clk 0:00:51]}  Red4 {[%clk 0:00:26]} 30. Rf2 {[%clk 0:00:51]}  Ng4 {[%clk 0:00:18]} 31. Re2 {[%clk 0:00:51]}  Rxd2+ {[%clk 0:00:05]} 32. Rxd2 {[%clk 0:00:52]}  Rb8 {[%clk 0:00:04]} 33. d7 {[%clk 0:00:48]}  Rd8 {[%clk 0:00:04]} 34. Re2 {[%clk 0:00:48]}  Nf6 {[%clk 0:00:02]} 35. Kc2 {[%clk 0:00:45]}  Kf7 {[%clk 0:00:01]} 36. Re5 {[%clk 0:00:37]}  Nxd7 {[%clk 0:00:01]} 37. Bxd7 {[%clk 0:00:36]}  Rxd7 {[%clk 0:00:01]} 38. Rxc5 {[%clk 0:00:37]}  Kf6 {[%clk 0:00:01]} 39. b4 {[%clk 0:00:36]}  Rb7 {[%clk 0:00:01]} 40. b5 {[%clk 0:00:37]}  Ra7 {[%clk 0:00:01]} 41. Kb3 {[%clk 0:00:35]}  Ke6 {[%clk 0:00:01]} 42. h4 {[%clk 0:00:35]}  Ra1 {[%clk 0:00:01]} 43. Rg5 {[%clk 0:00:34]}  Rb1+ {[%clk 0:00:01]} 44. Kc4 {[%clk 0:00:34]}  Rc1+ {[%clk 0:00:01]} 45. Kb4 {[%clk 0:00:35]}  Rb1+ {[%clk 0:00:02]} 46. Ka5 {[%clk 0:00:35]}  Kf6 {[%clk 0:00:02]} 47. b6 {[%clk 0:00:34]}  Rb2 {[%clk 0:00:03]} 48. Ka6 {[%clk 0:00:33]}  Ra2+ {[%clk 0:00:03]} 49. Ra5 {[%clk 0:00:32]}  Rb2 {[%clk 0:00:04]} 50. b7 {[%clk 0:00:31]} 1-0


[Site "https://www.chess.com"]

[Event "Titled Tuesday Blitz September 28 2021"]
[White "Krzywda, Andrzej"]
[Black "ketster"]
[WhiteFideId "1114565"]
[WhiteElo "2139"]
[BlackElo "2567"]
[Result "1-0"]
[Round "08"]
[TimeControl "180+1"]
[Date "2021.09.28"]
[WhiteClock "0:00:09"]
[BlackClock "0:00:20"]

1. e4 {[%clk 0:02:32]}  e5 {[%clk 0:02:55]} 2. Nf3 {[%clk 0:02:32]}  Nc6 {[%clk 0:02:54]} 3. d4 {[%clk 0:02:32]}  exd4 {[%clk 0:02:54]} 4. Nxd4 {[%clk 0:02:33]}  Bc5 {[%clk 0:02:51]} 5. Nb3 {[%clk 0:02:33]}  Bb6 {[%clk 0:02:51]} 6. Nc3 {[%clk 0:02:33]}  a5 {[%clk 0:02:50]} 7. Nd5 {[%clk 0:02:25]}  Ba7 {[%clk 0:02:42]} 8. a4 {[%clk 0:02:17]}  h6 {[%clk 0:02:30]} 9. Bf4 {[%clk 0:02:15]}  d6 {[%clk 0:02:29]} 10. Qd2 {[%clk 0:02:14]}  Nf6 {[%clk 0:02:27]} 11. O-O-O {[%clk 0:02:00]}  O-O {[%clk 0:02:26]} 12. f3 {[%clk 0:01:47]}  Nxd5 {[%clk 0:02:02]} 13. exd5 {[%clk 0:01:47]}  Nb4 {[%clk 0:01:48]} 14. g4 {[%clk 0:01:27]}  Bd7 {[%clk 0:01:37]} 15. h4 {[%clk 0:01:07]}  Bxa4 {[%clk 0:01:33]} 16. g5 {[%clk 0:00:45]}  h5 {[%clk 0:01:32]} 17. Bd3 {[%clk 0:00:34]}  Bxb3 {[%clk 0:01:22]} 18. cxb3 {[%clk 0:00:34]}  Nxd3+ {[%clk 0:01:22]} 19. Qxd3 {[%clk 0:00:34]}  Bc5 {[%clk 0:01:18]} 20. g6 {[%clk 0:00:28]}  Qf6 {[%clk 0:01:07]} 21. Bg5 {[%clk 0:00:28]}  Qxg6 {[%clk 0:01:07]} 22. Qxg6 {[%clk 0:00:28]}  fxg6 {[%clk 0:01:07]} 23. f4 {[%clk 0:00:29]}  Be3+ {[%clk 0:01:05]} 24. Kc2 {[%clk 0:00:29]}  Bxf4 {[%clk 0:01:05]} 25. Rhg1 {[%clk 0:00:26]}  Be5 {[%clk 0:01:02]} 26. Bd2 {[%clk 0:00:22]}  a4 {[%clk 0:01:01]} 27. Rxg6 {[%clk 0:00:20]}  axb3+ {[%clk 0:01:00]} 28. Kxb3 {[%clk 0:00:20]}  Rf3+ {[%clk 0:00:58]} 29. Bc3 {[%clk 0:00:20]}  Re8 {[%clk 0:00:41]} 30. Rdg1 {[%clk 0:00:19]}  Re7 {[%clk 0:00:38]} 31. R1g5 {[%clk 0:00:16]}  Rh3 {[%clk 0:00:32]} 32. Rxh5 {[%clk 0:00:15]}  Bf6 {[%clk 0:00:25]} 33. Ka2 {[%clk 0:00:10]}  Kf7 {[%clk 0:00:19]} 34. Rxf6+ {[%clk 0:00:08]}  gxf6 {[%clk 0:00:19]} 35. Rh7+ {[%clk 0:00:09]}  Ke8 {[%clk 0:00:19]} 36. Rh8+ {[%clk 0:00:09]}  Kd7 {[%clk 0:00:20]} 37. Bxf6 {[%clk 0:00:09]}  Rf7 {[%clk 0:00:20]} 38. Rd8# {[%clk 0:00:09]} 1-0


[Site "https://www.chess.com"]

[Event "Titled Tuesday Blitz September 28 2021"]
[White "Kuegel, Tobias"]
[Black "Rottenwohrer Suarez, Juan"]
[WhiteFideId "4636295"]
[BlackFideId "32068182"]
[WhiteElo "2424"]
[BlackElo "2158"]
[Result "0-1"]
[Round "08"]
[TimeControl "180+1"]
[Date "2021.09.28"]
[WhiteClock "0:00:01"]
[BlackClock "0:00:06"]

1. e4 {[%clk 0:03:00]}  c5 {[%clk 0:02:42]} 2. c4 {[%clk 0:03:00]}  Nc6 {[%clk 0:02:40]} 3. Ne2 {[%clk 0:03:01]}  e5 {[%clk 0:02:37]} 4. d3 {[%clk 0:03:01]}  g6 {[%clk 0:02:34]} 5. Nbc3 {[%clk 0:03:01]}  Bg7 {[%clk 0:02:34]} 6. g3 {[%clk 0:03:02]}  Nge7 {[%clk 0:02:34]} 7. Bg2 {[%clk 0:03:02]}  O-O {[%clk 0:02:35]} 8. O-O {[%clk 0:03:03]}  Rb8 {[%clk 0:02:33]} 9. Nd5 {[%clk 0:02:58]}  b5 {[%clk 0:02:30]} 10. b3 {[%clk 0:02:56]}  Nxd5 {[%clk 0:02:26]} 11. cxd5 {[%clk 0:02:55]}  Nd4 {[%clk 0:02:26]} 12. Nxd4 {[%clk 0:02:56]}  exd4 {[%clk 0:02:19]} 13. f4 {[%clk 0:02:19]}  c4 {[%clk 0:02:09]} 14. dxc4 {[%clk 0:02:01]}  bxc4 {[%clk 0:02:10]} 15. e5 {[%clk 0:01:59]}  cxb3 {[%clk 0:01:31]} 16. Qxd4 {[%clk 0:01:43]}  d6 {[%clk 0:00:51]} 17. axb3 {[%clk 0:01:18]}  dxe5 {[%clk 0:00:51]} 18. fxe5 {[%clk 0:01:17]}  Re8 {[%clk 0:00:52]} 19. Bf4 {[%clk 0:01:07]}  Qb6 {[%clk 0:00:40]} 20. Qxb6 {[%clk 0:00:59]}  Rxb6 {[%clk 0:00:41]} 21. Rxa7 {[%clk 0:00:51]}  Rxb3 {[%clk 0:00:25]} 22. d6 {[%clk 0:00:40]}  Rd3 {[%clk 0:00:22]} 23. Bc6 {[%clk 0:00:29]}  Rd8 {[%clk 0:00:16]} 24. Bg5 {[%clk 0:00:29]}  R8xd6 {[%clk 0:00:14]} 25. exd6 {[%clk 0:00:14]}  Bd4+ {[%clk 0:00:14]} 26. Kg2 {[%clk 0:00:14]}  Bxa7 {[%clk 0:00:14]} 27. Be8 {[%clk 0:00:06]}  Be6 {[%clk 0:00:06]} 28. d7 {[%clk 0:00:05]}  Bxd7 {[%clk 0:00:07]} 29. Bxf7+ {[%clk 0:00:05]}  Kg7 {[%clk 0:00:07]} 30. Bc4 {[%clk 0:00:03]}  Bc6+ {[%clk 0:00:06]} 31. Kh3 {[%clk 0:00:02]}  Rd7 {[%clk 0:00:06]} 32. Bf6+ {[%clk 0:00:01]}  Kh6 {[%clk 0:00:06]} 0-1


[Site "https://www.chess.com"]